fUST/lending_fUST_20251011
["ID","MTS","AMOUNT","RATE_DAILY","PERIOD"]
[390863098,1760181555717,733.5,0.0002068,2]
[390863099,1760181556123,1100.25,0.00022403,2]
[390863100,1760181556555,1467.0,0.00024127,2]
[390863101,1760181561593,5000.0,0.00024456,2]
[390863102,1760181565465,-320.59218606,0.00024456,2]
[390863103,1760181567844,-3580.9451676,0.00024456,2]
[390863104,1760181569580,-10000.01,0.00024456,2]
[390863105,1760181570059,-10000.01,0.00024456,2]
[390863106,1760181570077,-10000.01,0.00024456,2]
[390863107,1760181570091,-10000.01,0.00024456,2]
[390863108,1760181570121,-10000.01,0.00024456,2]
[390863109,1760181570306,-10000.01,0.00024456,2]
[390863110,1760181570530,-10000.01,0.00024456,2]
[390863111,1760181570646,-10000.01,0.00024456,2]
[390863112,1760181575789,-160.0,0.00020411,3]
[390863113,1760181584553,5000.0,0.00024456,2]
[390863114,1760181591697,151.0,0.000233,9]
[390863115,1760181592027,151.0,0.000219,3]
[390863116,1760181600589,4094.58080568,0.00024456,2]
[390863117,1760181601218,283.42919432,0.00024455,2]
[390863118,1760181615803,-5000.0,0.0002421,10]
[390863119,1760181615920,-16.57080568,0.00024455,2]
[390863120,1760181615948,-291.0,0.00024455,2]
[390863121,1760181615977,-300.0,0.00024455,2]
[390863122,1760181616007,-300.0,0.00024455,2]
[390863123,1760181616038,-1200.0,0.00024455,2]
[390863124,1760181616395,-6104.87838864,0.00024456,2]
[390863125,1760181616419,-10000.01,0.00024456,2]
[390863126,1760181616438,-10000.01,0.00024456,2]
[390863127,1760181616490,-10000.01,0.00024456,2]
[390863128,1760181616967,162.0,0.00027397,120]
[390863129,1760181617561,193.59851528,0.00027397,120]
[390863130,1760181621833,-10000.01,0.00024456,2]
[390863131,1760181621950,-10000.01,0.00024456,2]
[390863132,1760181622071,-10000.01,0.00024456,2]
[390863134,1760181640057,-5000.0,0.00024211,10]
[390863135,1760181641603,0.01,0.00019439,2]
[390863136,1760181641627,320.06,0.00019439,2]
[390863137,1760181641947,640.14,0.00021206,2]
[390863138,1760181642109,-207.6052691,0.00024456,2]
[390863139,1760181642887,960.22,0.00022973,2]
[390863140,1760181643542,-158.0,0.00024456,2]
[390863141,1760181645059,-190.31904551,0.00024456,2]
[390863142,1760181646972,-267.58210597,0.00024456,2]
[390863143,1760181648505,-286.20369376,0.00024456,2]
[390863144,1760181650954,-302.01391222,0.00024456,2]
[390863145,1760181654140,-230.37197165,0.00024456,2]
[390863146,1760181654280,5000.0,0.00024456,2]
[390863147,1760181663062,221.0,0.00024455,2]
[390863148,1760181664494,-408.89569398,0.00024456,2]
[390863149,1760181666375,-159.10424614,0.00024456,2]
[390863150,1760181667792,-255.76960315,0.00024456,2]
[390863151,1760181671783,-199.99999997,0.00024456,2]
[390863152,1760181675148,-245.87392014,0.00024456,2]
[390863153,1760181676793,2858.59,0.00024456,2]
[390863154,1760181676820,2141.41,0.00024456,2]
[390863155,1760181699498,5000.0,0.00024456,2]
[390863156,1760181704473,-150.0,0.00024456,2]
[390863157,1760181704646,-2558.59,0.00024456,2]
[390863158,1760181704974,-10000.01,0.00024456,2]
[390863159,1760181705093,-10000.01,0.00024456,2]
[390863160,1760181705423,-10000.01,0.00024456,2]
[390863161,1760181705464,-10000.01,0.00024456,2]
[390863162,1760181708437,-666.0,0.00023531,2]
[390863163,1760181708478,-8668.01,0.00024456,2]
[390863164,1760181708558,-10000.01,0.00024456,2]
[390863165,1760181718604,-538.843006,0.00023522,2]
[390863166,1760181718642,-8922.323988,0.00024456,2]
[390863167,1760181718795,-10000.01,0.00024456,2]
[390863168,1760181718919,-10000.01,0.00024456,2]
[390863169,1760181719024,-10000.01,0.00024456,2]
[390863170,1760181719181,-160.10254127,0.00024456,2]
[390863171,1760181719209,-154.3911795,0.00024471,2]
[390863172,1760181719237,-183.67583916,0.00024473,2]
[390863173,1760181719265,-500.0,0.00024473,2]
[390863174,1760181719292,-500.0,0.00024473,2]
[390863175,1760181719320,-500.0,0.00024473,2]
[390863176,1760181719346,-200.3281324,0.00024473,2]
[390863177,1760181719374,-500.0,0.00024473,2]
[390863178,1760181719400,-500.2607671,0.00024473,2]
[390863179,1760181719427,-500.0,0.00024473,2]
[390863180,1760181719453,-540.91253167,0.000245,2]
[390863181,1760181719606,-4904.1917686,0.0002451,2]
[390863182,1760181719864,-1712.2944806,0.0002399,2]
[390863183,1760181719900,-10000.01,0.0002399,2]
[390863184,1760181719933,-385.00587171,0.0002399,2]
[390863185,1760181719943,-191.6264628,0.0002451,2]
[390863186,1760181719951,-5095.81823139,0.00024534,2]
[390863187,1760181719961,-1495.78864244,0.00024556,2]
[390863188,1760181719970,-2831.77079166,0.00024557,3]
[390863189,1760181726578,-295.63,0.00019538,2]
[390863190,1760181726607,-591.26,0.00021314,2]
[390863191,1760181726638,-886.89,0.0002309,2]
[390863192,1760181726667,-1452.45,0.00023286,10]
[390863193,1760181726809,-3547.55,0.00023286,10]
[390863194,1760181726874,-223.0,0.00024556,2]
[390863195,1760181726917,-9554.01,0.00024557,3]
[390863196,1760181758722,-5000.0,0.00024311,10]
[390863197,1760181758765,-0.01,0.00024556,2]
[390863198,1760181758848,-1099.99,0.00024556,2]
[390863199,1760181758887,-7800.03,0.00024557,3]
[390863200,1760181759177,-1535.72421284,0.00024557,3]
[390863201,1760181759215,-6928.56157432,0.00024557,3]
[390863202,1760181776785,-171.544,0.00024164,6]
[390863203,1760181776816,-4656.922,0.00024311,10]
[390863204,1760181776854,-343.078,0.00024311,10]
[390863205,1760181776910,-1000.0,0.00024455,2]
[390863206,1760181776937,-2609.37557469,0.00024557,3]
[390863207,1760181776966,-500.0,0.00024557,5]
[390863208,1760181776994,-160.0,0.00024557,3]
[390863209,1760181777022,-177.53631474,0.00024557,2]
[390863210,1760181777110,-1106.18622114,0.00024557,2]
[390863212,1760181778811,-4023.06852298,0.00024557,2]
[390863213,1760181778840,-1953.87295404,0.00024557,2]
[390863214,1760181782827,-4030.99914439,0.00024557,2]
[390863215,1760181782868,-1938.01171122,0.00024557,2]
[390863216,1760181782937,-3157.80652017,0.00024557,2]
[390863217,1760181782964,-934.05941831,0.0002461,2]
[390863218,1760181783015,-1816.27812304,0.00024656,2]
[390863219,1760181792936,5000.0,0.00024656,2]
[390863220,1760181802768,273.05,0.00019444,2]
[390863221,1760181803203,546.11,0.00021212,2]
[390863222,1760181803616,819.16,0.0002298,2]
[390863223,1760181812939,463.15797556,0.00024556,2]
[390863224,1760181817089,2898.53202444,0.00024656,2]
[390863225,1760181817112,2101.46797556,0.00024656,2]
[390863226,1760181821667,2909.4078846,0.00023657,2]
[390863227,1760181825086,4989.13413984,0.00024656,2]
[390863228,1760181825108,10.86586016,0.00024656,2]
[390863229,1760181827022,9989.14413984,0.00024356,2]
[390863230,1760181827044,10000.01,0.00024356,2]
[390863231,1760181827065,10000.01,0.00024356,2]
[390863232,1760181827085,10000.01,0.00024356,2]
[390863233,1760181827105,10000.01,0.00024356,2]
[390863234,1760181827125,10000.01,0.00024356,2]
[390863235,1760181827146,10000.01,0.00024356,2]
[390863236,1760181827166,10000.01,0.00024356,2]
[390863237,1760181827188,10000.01,0.00024356,2]
[390863238,1760181833308,5000.0,0.00024356,2]
[390863239,1760181841356,5000.0,0.00024356,2]
[390863240,1760181849687,0.01,0.00024356,2]
[390863242,1760181876466,-5000.0,0.00024112,10]
[390863243,1760181878475,-4999.99,0.00024356,2]
[390863244,1760181881170,-2067.85572943,0.00024112,10]
[390863245,1760181882609,-276.66,0.00021934,2]
[390863246,1760181882946,-5321.9044013,0.00024356,2]
[390863247,1760181883082,-553.33,0.00023928,2]
[390863248,1760181883114,-8893.35,0.00024356,2]
[390863249,1760181883175,-10000.01,0.00024356,2]
[390863250,1760181883344,-10000.01,0.00024356,2]
[390863251,1760181883685,-10000.01,0.00024356,2]
[390863252,1760181883913,-10000.01,0.00024356,2]
[390863253,1760181884498,-10000.01,0.00024356,2]
[390863254,1760181884594,-10000.01,0.00024356,2]
[390863255,1760181884696,-10000.01,0.00024356,2]
[390863256,1760181884857,-10000.01,0.00024356,2]
[390863257,1760181912793,-398.17375706,0.00023794,2]
[390863258,1760181912824,-4203.66248588,0.00023871,10]
[390863259,1760181912867,-796.33751412,0.00023871,10]
[390863260,1760181913028,-1200.0,0.00024111,2]
[390863261,1760181913059,-2600.01,0.00024112,10]
[390863262,1760181913096,-2399.99,0.00024112,10]
[390863263,1760181913168,-300.0,0.00024345,2]
[390863264,1760181913196,-300.0,0.00024345,2]
[390863265,1760181913224,-196.52,0.00024346,3]
[390863266,1760181913254,-196.52,0.00024346,3]
[390863267,1760181913282,-300.0,0.00024355,2]
[390863268,1760181913311,-300.0,0.00024355,2]
[390863269,1760181913340,-300.0,0.00024355,2]
[390863271,1760181914797,2609.37557469,0.00024112,10]
[390863272,1760181919970,3604.55442531,0.00024356,2]
[390863273,1760181919994,1395.44557469,0.00024356,2]
[390863275,1760181928728,-2390.63442531,0.00024356,2]
[390863276,1760181929215,-10000.01,0.00024356,2]
[390863277,1760181929257,-10000.01,0.00024356,2]
[390863278,1760181935998,5000.0,0.00024356,2]
[390863279,1760181943870,5000.0,0.00024356,2]
[390863280,1760181952237,0.01,0.00024356,2]
[390863281,1760181952279,668.71523524,0.00024356,2]
[390863283,1760181956107,500.0,0.00024355,2]
[390863284,1760181956143,500.0,0.00024355,2]
[390863285,1760181956177,500.0,0.00024355,2]
[390863286,1760181956204,193.10639068,0.00024355,2]
[390863287,1760181956234,500.0,0.00024355,2]
[390863288,1760181956270,500.0,0.00024355,2]
[390863289,1760181956299,500.0,0.00024355,2]
[390863290,1760181956336,229.02792846,0.00024355,2]
[390863291,1760181956365,500.0,0.00024355,2]
[390863292,1760181956393,500.0,0.00024355,2]
[390863293,1760181956424,500.0,0.00024355,2]
[390863294,1760181956455,500.0,0.00024355,2]
[390863295,1760181956483,500.0,0.00024355,2]
[390863296,1760181956518,387.29846981,0.00024355,2]
[390863297,1760181956567,500.0,0.00024355,2]
[390863298,1760181960218,5000.0,0.00024356,2]
[390863299,1760181963072,300.0,0.00024355,2]
[390863300,1760181964259,266.1,0.00019526,2]
[390863301,1760181964723,532.2,0.00021301,2]
[390863302,1760181965131,798.3,0.00023076,2]
[390863303,1760181966985,-5625.27197581,0.00024356,2]
[390863304,1760181968520,500.0,0.00024355,2]
[390863305,1760181968549,500.0,0.00024355,2]
[390863306,1760181968718,1224.23331211,0.00024356,2]
[390863307,1760181968750,500.0,0.00024355,2]
[390863308,1760181968780,379.17668789,0.00024355,2]
[390863309,1760181968806,120.82331211,0.00024355,2]
[390863310,1760181968850,500.0,0.00024355,2]
[390863311,1760181968896,500.0,0.00024355,2]
[390863312,1760181968924,500.0,0.00024355,2]
[390863313,1760181968961,500.0,0.00024355,2]
[390863314,1760181968991,500.0,0.00024355,2]
[390863315,1760181969021,500.0,0.00024355,2]
[390863316,1760181969052,518.30345626,0.00024355,2]
[390863317,1760181969089,500.0,0.00024355,2]
[390863318,1760181969116,500.0,0.00024355,2]
[390863319,1760181969149,500.0,0.00024355,2]
[390863320,1760181969176,500.0,0.00024355,2]
[390863321,1760181969204,500.0,0.00024355,2]
[390863322,1760181969241,500.0,0.00024355,2]
[390863323,1760181969270,556.59087745,0.00024355,2]
[390863324,1760181969304,500.0,0.00024355,2]
[390863325,1760181969331,500.0,0.00024355,2]
[390863326,1760181969364,500.0,0.00024355,2]
[390863327,1760181969398,500.0,0.00024355,2]
[390863328,1760181969482,500.0,0.00024355,2]
[390863329,1760181969520,304.29235418,0.00024355,2]
[390863330,1760181969546,195.70764582,0.00024355,2]
[390863331,1760181969598,500.0,0.00024355,2]
[390863332,1760181969630,500.0,0.00024355,2]
[390863333,1760181969701,500.0,0.00024355,2]
[390863334,1760181970017,-5200.89235418,0.00024356,2]
[390863335,1760181970282,-10000.01,0.00024356,2]
[390863336,1760181970336,-10000.01,0.00024356,2]
[390863337,1760181970510,-10000.01,0.00024356,2]
[390863338,1760181970531,-10000.01,0.00024356,2]
[390863339,1760181970548,-10000.01,0.00024356,2]
[390863340,1760181970571,-10000.01,0.00024356,2]
[390863341,1760181970591,-10000.01,0.00024356,2]
[390863342,1760181976370,5000.0,0.00024112,10]
[390863343,1760181984553,5000.0,0.00024355,2]
[390863344,1760181992398,0.01,0.00024355,2]
[390863345,1760182009136,-4331.27476476,0.00024012,10]
[390863346,1760182009176,1337.46047048,0.00023772,10]
[390863347,1760182009253,-3662.53952952,0.00023772,10]
[390863353,1760182024872,762.93162282,0.00024012,2]
[390863354,1760182027905,-300.0,0.00024254,2]
[390863355,1760182033048,5000.0,0.00024254,2]
[390863356,1760182045575,1200.0,0.00024254,2]
[390863357,1760182049880,315.05,0.00021781,2]
[390863358,1760182050299,630.09,0.00023761,2]
[390863359,1760182055470,2254.87,0.00024254,2]
[390863360,1760182055494,2745.13,0.00024254,2]
[390863361,1760182069834,10000.01,0.00018,2]
[390863362,1760182069862,7254.88,0.00018,2]
[390863363,1760182069887,10000.01,0.00018,2]
[390863364,1760182069910,10000.01,0.00018,2]
[390863365,1760182069934,10000.01,0.00018,2]
[390863366,1760182069956,10000.01,0.00018,2]
[390863367,1760182069978,10000.01,0.00018,2]
[390863368,1760182070000,10000.01,0.00018,2]
[390863369,1760182070023,1380.58993724,0.00018,2]
[390863370,1760182073279,300.0,0.00018359,2]
[390863371,1760182073901,300.0,0.00018359,2]
[390863372,1760182074243,300.0,0.00018359,2]
[390863373,1760182074721,300.0,0.00018359,2]
[390863374,1760182075172,300.0,0.00018359,2]
[390863375,1760182075707,300.0,0.00018359,2]
[390863376,1760182076225,300.0,0.00018359,2]
[390863377,1760182076675,300.0,0.00018359,2]
[390863378,1760182077158,300.0,0.00018359,2]
[390863379,1760182077623,300.0,0.00018359,2]
[390863380,1760182077678,5000.0,0.00024255,2]
[390863381,1760182078145,300.0,0.00018359,2]
[390863382,1760182078623,300.0,0.00018359,2]
[390863383,1760182079134,300.0,0.00018359,2]
[390863384,1760182079846,300.0,0.00018359,2]
[390863385,1760182080309,300.0,0.00018359,2]
[390863386,1760182082576,300.0,0.00024254,2]
[390863387,1760182085201,180.41427463,0.00023655,5]
[390863388,1760182092177,151.0,0.00017,2]
[390863389,1760182092930,4237.06837718,0.00024255,2]
[390863390,1760182093303,151.0,0.000177,2]
[390863391,1760182094439,151.0,0.000184,2]
[390863392,1760182095326,151.0,0.000191,2]
[390863393,1760182096243,5014.0,0.00018,2]
[390863394,1760182100870,4986.01,0.00024255,2]
[390863395,1760182101035,13.99,0.00024255,2]
[390863397,1760182103134,2110.84919684,0.000176,2]
[390863399,1760182112006,7875.17080316,0.00017,2]
[390863400,1760182112028,10000.01,0.00017,2]
[390863401,1760182112049,5264.05770306,0.00017,2]
[390863402,1760182112469,420.05512422,0.00022,5]
[390863403,1760182113584,314.21682361,0.0002,20]
[390863404,1760182114328,4001.68034911,0.00015,2]
[390863405,1760182114348,5998.32965089,0.00015,2]
[390863406,1760182114653,4001.68034911,0.0002,2]
[390863407,1760182114676,7789.76722395,0.0002,2]
[390863408,1760182114967,1372.87739299,0.0002061,2]
[390863409,1760182117700,10955.50547642,0.0002,120]
[390863410,1760182123965,-5000.0,0.0001584,2]
[390863411,1760182124070,-213.23869478,0.00016,2]
[390863412,1760182140088,-5000.0,0.0001782,2]
[390863413,1760182147114,0.01,0.0001782,2]
[390863414,1760182147145,4999.99,0.0001782,2]
[390863415,1760182156288,-3235.59160572,0.00018,2]
[390863416,1760182172349,-5000.0,0.00020582,2]
[390863417,1760182178667,0.01,0.00020582,2]
[390863418,1760182178688,4999.99,0.00020582,2]
[390863419,1760182181813,-499.65628755,0.0002079,2]
[390863420,1760182194169,5000.0,0.0002079,2]
[390863421,1760182197822,157.0,0.00020438,3]
[390863422,1760182198494,-499.999999,0.00021,2]
[390863423,1760182214630,-5000.0,0.00021536,2]
[390863424,1760182218329,0.01,0.00021536,2]
[390863425,1760182218352,4999.99,0.00021536,2]
[390863426,1760182226190,4999.99,0.00021536,2]
[390863427,1760182230768,-392.57,0.00021748,2]
[390863438,1760182232581,-470.21261488,0.00022359,2]
[390863440,1760182232592,-80.78485995,0.00022359,2]
[390863442,1760182232601,-160.03104987,0.00023655,5]
[390863443,1760182232610,-189.71565701,0.00023655,5]
[390863444,1760182232619,-785.13,0.00023725,2]
[390863445,1760182232628,-311.0,0.0002411,2]
[390863446,1760182232637,-174.67994455,0.00024246,2]
[390863447,1760182232646,-207.53074399,0.00024253,2]
[390863448,1760182232670,-992.46925601,0.00024253,2]
[390863449,1760182232680,-300.0,0.00024254,2]
[390863450,1760182232689,-42.66810033,0.00024254,2]
[390863451,1760182232700,-257.33189967,0.00024254,2]
[390863452,1760182232710,-300.0,0.00024254,2]
[390863453,1760182232719,-300.0,0.00024254,2]
[390863454,1760182232727,-300.0,0.00024254,2]
[390863455,1760182232736,-15515.89497742,0.00024255,2]
[390863456,1760182232746,-500.0,0.000243,2]
[390863457,1760182232755,-14449.4916657,0.00024329,2]
[390863458,1760182232764,-379.8,0.00024346,10]
[390863459,1760182232774,-593.0,0.00024346,10]
[390863460,1760182232783,-494.17,0.00024346,10]
[390863461,1760182232792,-556.02,0.00024352,3]
[390863462,1760182232802,-278.01,0.00024352,3]
[390863463,1760182232811,-834.06,0.00024352,3]
[390863464,1760182232821,-82578.55270356,0.00024356,2]
[390863465,1760182232830,-45884.51977744,0.00024362,2]
[390863467,1760182238329,-4115.48022256,0.00024362,2]
[390863468,1760182238339,-4018.647969,0.00024362,2]
[390863469,1760182238349,-1800.86,0.00024363,3]
[390863470,1760182238358,-1299.3,0.00024363,3]
[390863471,1760182238367,-938.13,0.00024363,3]
[390863472,1760182238376,-500.0,0.00024373,2]
[390863474,1760182238385,-22.28780844,0.00024373,2]
[390863475,1760182238396,-477.71219156,0.00024373,2]
[390863476,1760182238405,-500.0,0.00024373,2]
[390863477,1760182238414,-500.128199,0.00024373,2]
[390863478,1760182238424,-500.0,0.00024373,2]
[390863479,1760182238433,-500.3923014,0.00024373,2]
[390863480,1760182238442,-500.0,0.00024373,2]
[390863481,1760182238452,-500.0,0.00024373,2]
[390863482,1760182238461,-201.31478402,0.00024373,2]
[390863483,1760182238470,-527.3885147,0.00024373,2]
[390863484,1760182238479,-486.57230199,0.00024373,2]
[390863485,1760182238488,-189.71565701,0.00024386,5]
[390863486,1760182238498,-151.0,0.000244,5]
[390863487,1760182238507,-151.0,0.000245,7]
[390863488,1760182238516,-151.0,0.000245,8]
[390863489,1760182238526,-151.0,0.000245,9]
[390863490,1760182238535,-471.34885219,0.000245,2]
[390863491,1760182238546,-1112.05,0.00024546,3]
[390863492,1760182238555,-7204.48586846,0.00024546,2]
[390863493,1760182238564,-500.0,0.00024555,2]
[390863494,1760182238575,-408.16228137,0.00024555,2]
[390863496,1760182238597,-500.0,0.00024555,2]
[390863498,1760182238620,-500.0,0.00024555,2]
[390863500,1760182238642,-500.0,0.00024555,2]
[390863502,1760182238664,-500.0,0.00024555,2]
[390863504,1760182238685,-500.0,0.00024555,2]
[390863505,1760182238707,-500.0,0.00024555,2]
[390863507,1760182238728,-500.0,0.00024555,2]
[390863509,1760182238750,-500.0,0.00024555,2]
[390863510,1760182238772,-500.0,0.00024555,2]
[390863511,1760182238797,-500.0,0.00024555,2]
[390863512,1760182238821,-500.0,0.00024555,2]
[390863514,1760182238845,-500.0,0.00024555,2]
[390863516,1760182238869,-500.0,0.00024555,2]
[390863518,1760182238892,-500.0,0.00024555,2]
[390863520,1760182238915,-500.0,0.00024555,2]
[390863522,1760182238938,-500.0,0.00024555,2]
[390863524,1760182238949,-500.0,0.00024555,2]
[390863526,1760182238960,-500.0,0.00024555,2]
[390863528,1760182238970,-500.0,0.00024555,2]
[390863529,1760182238981,-500.0,0.00024555,2]
[390863532,1760182238992,-500.0,0.00024555,2]
[390863534,1760182239002,-500.0,0.00024555,2]
[390863535,1760182239013,-500.0,0.00024555,2]
[390863537,1760182239023,-502.76673108,0.00024555,2]
[390863539,1760182239033,-500.0,0.00024555,2]
[390863541,1760182239046,-500.0,0.00024555,2]
[390863543,1760182239056,-500.0,0.00024555,2]
[390863545,1760182239066,-500.0,0.00024555,2]
[390863547,1760182239076,-500.0,0.00024555,2]
[390863549,1760182239086,-500.0,0.00024555,2]
[390863551,1760182239096,-500.0,0.00024555,2]
[390863553,1760182239106,-500.0,0.00024555,2]
[390863555,1760182239115,-500.0,0.00024555,2]
[390863557,1760182239125,-500.0,0.00024555,2]
[390863559,1760182239135,-321.29727443,0.00024555,2]
[390863561,1760182239144,-519.40481034,0.00024555,2]
[390863563,1760182239154,-500.0,0.00024555,2]
[390863565,1760182239163,-500.0,0.00024555,2]
[390863567,1760182239174,-500.0,0.00024555,2]
[390863569,1760182239184,-500.0,0.00024555,2]
[390863571,1760182239194,-500.0,0.00024555,2]
[390863573,1760182239203,-500.0,0.00024555,2]
[390863575,1760182239212,-500.0,0.00024555,2]
[390863576,1760182239223,-500.0,0.00024555,2]
[390863577,1760182239232,-500.0,0.00024555,2]
[390863578,1760182239242,-500.0,0.00024555,2]
[390863579,1760182239251,-500.0,0.00024555,2]
[390863581,1760182239260,-500.0,0.00024555,2]
[390863582,1760182239270,-500.0,0.00024555,2]
[390863583,1760182239281,-487.2579764,0.00024555,2]
[390863584,1760182239290,-500.0,0.00024555,2]
[390863585,1760182239300,-500.0,0.00024555,2]
[390863586,1760182239311,-200.0,0.00024555,2]
[390863587,1760182239320,-500.0,0.00024555,2]
[390863588,1760182239330,-500.0,0.00024555,2]
[390863589,1760182239339,-500.0,0.00024555,2]
[390863590,1760182239349,-500.0,0.00024555,2]
[390863591,1760182239359,-500.0,0.00024555,2]
[390863592,1760182239368,-500.0,0.00024555,2]
[390863594,1760182239378,-500.0,0.00024555,2]
[390863595,1760182239387,-500.0,0.00024555,2]
[390863596,1760182239396,-500.0,0.00024555,2]
[390863597,1760182239406,-500.0,0.00024555,2]
[390863598,1760182239415,-500.0,0.00024555,2]
[390863599,1760182239425,-500.0,0.00024555,2]
[390863600,1760182239436,-500.0,0.00024555,2]
[390863601,1760182239445,-500.0,0.00024555,2]
[390863602,1760182239455,-500.0,0.00024555,2]
[390863603,1760182239464,-500.0,0.00024555,2]
[390863604,1760182239475,-540.16325635,0.00024555,2]
[390863605,1760182239485,-500.0,0.00024555,2]
[390863606,1760182239495,-500.0,0.00024555,2]
[390863607,1760182239504,-500.0,0.00024555,2]
[390863608,1760182239514,-500.0,0.00024555,2]
[390863609,1760182239523,-500.0,0.00024555,2]
[390863610,1760182239533,-500.0,0.00024555,2]
[390863611,1760182239544,-500.0,0.00024555,2]
[390863612,1760182239554,-500.0,0.00024555,2]
[390863613,1760182239563,-500.0,0.00024555,2]
[390863614,1760182239575,-500.0,0.00024555,2]
[390863615,1760182239585,-500.0,0.00024555,2]
[390863616,1760182239594,-500.0,0.00024555,2]
[390863617,1760182239604,-500.0,0.00024555,2]
[390863618,1760182239613,-500.0,0.00024555,2]
[390863619,1760182239622,-500.0,0.00024555,2]
[390863620,1760182239631,-500.0,0.00024555,2]
[390863621,1760182239640,-500.0,0.00024556,2]
[390863622,1760182239650,-2418.42759454,0.00024556,2]
[390863623,1760182239659,-3365.5244455,0.00024556,2]
[390863624,1760182239668,-15552.19750194,0.00024557,3]
[390863625,1760182239679,-177.53631473,0.00024557,2]
[390863626,1760182239691,-390.19443505,0.00024557,2]
[390863627,1760182239702,-151.0,0.000246,8]
[390863628,1760182239711,-151.0,0.000246,8]
[390863629,1760182239721,-151.0,0.000246,5]
[390863630,1760182239730,-160.0,0.00024656,2]
[390863631,1760182239742,-227.64,0.00024656,2]
[390863632,1760182239752,-500.0,0.00024656,2]
[390863633,1760182239761,-500.0,0.00024656,2]
[390863634,1760182239770,-317.68021671,0.00024656,2]
[390863635,1760182239779,-500.0,0.00024656,2]
[390863636,1760182239788,-500.0,0.00024656,2]
[390863637,1760182239797,-307.00800032,0.00024656,2]
[390863638,1760182239806,-200.0,0.00024656,2]
[390863639,1760182239815,-500.0,0.00024657,9]
[390863640,1760182239824,-500.0,0.00024657,9]
[390863641,1760182239834,-500.0,0.00024657,9]
[390863642,1760182239843,-500.0,0.00024657,9]
[390863643,1760182239852,-500.0,0.00024657,9]
[390863644,1760182239861,-500.0,0.00024657,9]
[390863646,1760182239870,-500.0,0.00024657,9]
[390863647,1760182239879,-314.21855126,0.00024657,9]
[390863648,1760182239888,-500.0,0.00024657,9]
[390863649,1760182239902,-500.0,0.00024657,9]
[390863650,1760182239911,-500.0,0.00024657,9]
[390863651,1760182239921,-500.0,0.00024657,9]
[390863652,1760182239930,-500.0,0.00024657,9]
[390863653,1760182239939,-500.0,0.00024657,9]
[390863654,1760182239948,-500.0,0.00024657,9]
[390863655,1760182239957,-500.0,0.00024657,9]
[390863656,1760182239967,-500.0,0.00024657,9]
[390863657,1760182239977,-500.0,0.00024657,9]
[390863658,1760182239986,-500.0,0.00024657,9]
[390863659,1760182239995,-500.0,0.00024657,9]
[390863660,1760182240004,-500.0,0.00024657,9]
[390863661,1760182240013,-500.0,0.00024657,9]
[390863662,1760182240022,-552.49,0.00024657,9]
[390863663,1760182240031,-500.0,0.00024657,9]
[390863664,1760182240042,-500.0,0.00024657,9]
[390863665,1760182240051,-500.0,0.00024657,9]